{"text_format":"1","workbook":"xlsx","n_sheets":2,"sheets":["T5","Uebersetzungen"],"not_rendered":{"charts":0,"images":0,"macros":0,"external_links":0,"defined_names":0,"comments":0,"pivot_tables":0},"unopened":[],"bounds":{"document_bytes":16777216,"sheet_cells":100000,"rows_first":2000,"rows_last":500,"rows_between":2000,"halvings":0,"cell_chars":16384,"cell_head_chars":4096},"cells_cut":0,"cells_raw":0,"read":"whole","date_system":"1900"}

{"sheet":"T5","index":0,"n_rows":43,"n_cols":4,"rows_kept":43,"cut":false,"hidden":false,"merged":[[7,0,7,2],[0,0,0,1],[30,0,30,3],[42,0,42,3],[28,0,28,3],[31,0,31,3],[37,0,37,3],[38,0,38,3],[32,0,32,3],[33,0,33,3],[34,0,34,3],[35,0,35,3],[36,0,36,3],[8,0,8,2],[40,0,40,3],[41,0,41,3]]}
["Sprache / Langue / Lingua / Language"]
[]
[]
[]
[]
[]
[]
[{"$f":"VLOOKUP(\"<T5_Ti>\",Uebersetzungen!$B$3:$F$29,Uebersetzungen!B$2+1,FALSE)","v":"Die Gewichtung der Subindizes"}]
[{"$f":"VLOOKUP(\"<T5_UTi>\",Uebersetzungen!$B$3:$F$29,Uebersetzungen!B$2+1,FALSE)","v":"Schweizerischer Immobilienpreisindex, IMPI"},null,null,"T 5"]
[{"$f":"VLOOKUP(\"<T5_SpaltenTitel_1>\",Uebersetzungen!$B$3:$F$29,Uebersetzungen!B$2+1,FALSE)","v":"Totalindex und Subindizes "},null,null,{"$f":"VLOOKUP(\"<T5_SpaltenTitel_2>\",Uebersetzungen!$B$3:$F$29,Uebersetzungen!B$2+1,FALSE)","v":"Gewichte 2020 \n(Anteil in %)*"}]
[{"$f":"VLOOKUP(\"<Zeilentitel_1>\",Uebersetzungen!$B$3:$F$29,Uebersetzungen!B$2+1,FALSE)","v":"Total "},null,null,100]
[{"$f":"VLOOKUP(\"<Zeilentitel_4>\",Uebersetzungen!$B$3:$F$29,Uebersetzungen!B$2+1,FALSE)","v":"GemeindeTyp 1"},null,null,31.321000000000002]
[{"$f":"VLOOKUP(\"<Zeilentitel_5>\",Uebersetzungen!$B$3:$F$29,Uebersetzungen!B$2+1,FALSE)","v":"GemeindeTyp 2"},null,null,18.596]
[{"$f":"VLOOKUP(\"<Zeilentitel_6>\",Uebersetzungen!$B$3:$F$29,Uebersetzungen!B$2+1,FALSE)","v":"GemeindeTyp 3"},null,null,9.1270000000000007]
[{"$f":"VLOOKUP(\"<Zeilentitel_7>\",Uebersetzungen!$B$3:$F$29,Uebersetzungen!B$2+1,FALSE)","v":"GemeindeTyp 4"},null,null,26.117000000000001]
[{"$f":"VLOOKUP(\"<Zeilentitel_8>\",Uebersetzungen!$B$3:$F$29,Uebersetzungen!B$2+1,FALSE)","v":"GemeindeTyp 5"},null,null,14.839]
[{"$f":"VLOOKUP(\"<Zeilentitel_2>\",Uebersetzungen!$B$3:$F$29,Uebersetzungen!B$2+1,FALSE)","v":"EFH"},null,null,48.14]
[{"$f":"VLOOKUP(\"<Zeilentitel_4>\",Uebersetzungen!$B$3:$F$29,Uebersetzungen!B$2+1,FALSE)","v":"GemeindeTyp 1"},null,null,13.916]
[{"$f":"VLOOKUP(\"<Zeilentitel_5>\",Uebersetzungen!$B$3:$F$29,Uebersetzungen!B$2+1,FALSE)","v":"GemeindeTyp 2"},null,null,7.4630000000000001]
[{"$f":"VLOOKUP(\"<Zeilentitel_6>\",Uebersetzungen!$B$3:$F$29,Uebersetzungen!B$2+1,FALSE)","v":"GemeindeTyp 3"},null,null,3.7850000000000001]
[{"$f":"VLOOKUP(\"<Zeilentitel_7>\",Uebersetzungen!$B$3:$F$29,Uebersetzungen!B$2+1,FALSE)","v":"GemeindeTyp 4"},null,null,14.036]
[{"$f":"VLOOKUP(\"<Zeilentitel_8>\",Uebersetzungen!$B$3:$F$29,Uebersetzungen!B$2+1,FALSE)","v":"GemeindeTyp 5"},null,null,8.94]
[{"$f":"VLOOKUP(\"<Zeilentitel_3>\",Uebersetzungen!$B$3:$F$29,Uebersetzungen!B$2+1,FALSE)","v":"EGW"},null,null,51.86]
[{"$f":"VLOOKUP(\"<Zeilentitel_4>\",Uebersetzungen!$B$3:$F$29,Uebersetzungen!B$2+1,FALSE)","v":"GemeindeTyp 1"},null,null,17.405000000000001]
[{"$f":"VLOOKUP(\"<Zeilentitel_5>\",Uebersetzungen!$B$3:$F$29,Uebersetzungen!B$2+1,FALSE)","v":"GemeindeTyp 2"},null,null,11.134]
[{"$f":"VLOOKUP(\"<Zeilentitel_6>\",Uebersetzungen!$B$3:$F$29,Uebersetzungen!B$2+1,FALSE)","v":"GemeindeTyp 3"},null,null,5.3419999999999996]
[{"$f":"VLOOKUP(\"<Zeilentitel_7>\",Uebersetzungen!$B$3:$F$29,Uebersetzungen!B$2+1,FALSE)","v":"GemeindeTyp 4"},null,null,12.08]
[{"$f":"VLOOKUP(\"<Zeilentitel_8>\",Uebersetzungen!$B$3:$F$29,Uebersetzungen!B$2+1,FALSE)","v":"GemeindeTyp 5"},null,null,5.899]
[{"$f":"VLOOKUP(\"<T5_Bemerkung>\",Uebersetzungen!$B$3:$F$29,Uebersetzungen!B$2+1,FALSE)","v":"* Bei der Berechnung des Gesamtindex werden die einzelnen Zellen aggregiert. Dabei werden sie anhand ihres Anteils am Transaktionsvolumen aus dem Vorjahr gewichtet."}]
[]
[{"$f":"VLOOKUP(\"<Legende_1>\",Uebersetzungen!$B$3:$F$29,Uebersetzungen!B$2+1,FALSE)","v":"Legende:"}]
[{"$f":"VLOOKUP(\"<Legende_2>\",Uebersetzungen!$B$3:$F$29,Uebersetzungen!B$2+1,FALSE)","v":"Total - Wohneigentum (EFH und EGW)"}]
[{"$f":"VLOOKUP(\"<Legende_3>\",Uebersetzungen!$B$3:$F$29,Uebersetzungen!B$2+1,FALSE)","v":"EFH - Einfamilienhäuser"}]
[{"$f":"VLOOKUP(\"<Legende_4>\",Uebersetzungen!$B$3:$F$29,Uebersetzungen!B$2+1,FALSE)","v":"EGW - Eigentumswohnungen "}]
[{"$f":"VLOOKUP(\"<Legende_5>\",Uebersetzungen!$B$3:$F$29,Uebersetzungen!B$2+1,FALSE)","v":"GemeindeTyp 1 - Städtische Gemeinde einer grossen Agglomeration"}]
[{"$f":"VLOOKUP(\"<Legende_6>\",Uebersetzungen!$B$3:$F$29,Uebersetzungen!B$2+1,FALSE)","v":"GemeindeTyp 2 - Städtische Gemeinde einer mittelgrossen Agglomeration"}]
[{"$f":"VLOOKUP(\"<Legende_7>\",Uebersetzungen!$B$3:$F$29,Uebersetzungen!B$2+1,FALSE)","v":"GemeindeTyp 3 - Städtische Gemeinde einer kleinen oder ausserhalb einer Agglomeration"}]
[{"$f":"VLOOKUP(\"<Legende_8>\",Uebersetzungen!$B$3:$F$29,Uebersetzungen!B$2+1,FALSE)","v":"GemeindeTyp 4 - Intermediäre Gemeinde "}]
[{"$f":"VLOOKUP(\"<Legende_9>\",Uebersetzungen!$B$3:$F$29,Uebersetzungen!B$2+1,FALSE)","v":"GemeindeTyp 5 - Ländliche Gemeinde"}]
[]
[{"$f":"VLOOKUP(\"<Quelle>\",Uebersetzungen!$B$3:$F$29,Uebersetzungen!B$2+1,FALSE)","v":"Quelle: BFS - Schweizerischer Wohnimmobilienpreisindex, IMPI"}]
[{"$f":"VLOOKUP(\"<CopyRight>\",Uebersetzungen!$B$3:$F$29,Uebersetzungen!B$2+1,FALSE)","v":"© BFS 2021"}]
[{"$f":"VLOOKUP(\"<Auskunft>\",Uebersetzungen!$B$3:$F$29,Uebersetzungen!B$2+1,FALSE)","v":"Auskunft: Bundesamt für Statistik (BFS), IMPI@bfs.admin.ch, Tel. +41 58 463 60 69"}]

{"sheet":"Uebersetzungen","index":1,"n_rows":29,"n_cols":6,"rows_kept":29,"cut":false,"hidden":true,"merged":[]}
["Tabelle","Code","DE","FR","IT","EN"]
["Sprache",1]
["T6","<T5_Ti>","Die Gewichtung der Subindizes","La pondération des sous-indices","Ponderazione dei sottoindici","The weights of the subindices"]
[null,"<T5_UTi>","Schweizerischer Immobilienpreisindex, IMPI","Indice suisse des prix de l'immobilier résidentiel, IMPI","Indice svizzero dei prezzi degli immobili residenziali, IMPI","Swiss Residential Property Price Index, IMPI"]
[null,"<T5_SpaltenTitel_1>","Totalindex und Subindizes ","Indice total et sous-indices ","Indice totale e sottoindici ","Total index and sub-indices "]
[null,"<T5_SpaltenTitel_2>","Gewichte 2020 \n(Anteil in %)*","Poids 2020 \n(part en %)*","Pesi 2020 \n(quota in %)*","Weights 2020 \n(share in %)*"]
[null,"<T5_Bemerkung>","* Bei der Berechnung des Gesamtindex werden die einzelnen Zellen aggregiert. Dabei werden sie anhand ihres Anteils am Transaktionsvolumen aus dem Vorjahr gewichtet.","* Les strates individuelles sont agrégées jusqu'au niveau de l'indice total. Elles sont pondérées en fonction de leur part dans le volume total des transactions de l'année précédente.","* I singoli strati vengono aggregati nel calcolo dell'indice totale. Essi sono ponderati in base alla loro quota di  volume delle transazioni dell'anno precedente.","* When calculating the total index, the individual strata are aggregated. They are weighted according to their share of the transaction volume from the previous year."]
[]
["T1-T6","<Zeilentitel_1>","Total ","Total ","Totale ","Total"]
[null,"<Zeilentitel_2>","EFH","MI","CU","SFH"]
[null,"<Zeilentitel_3>","EGW","PPE","APP","CONDO"]
[null,"<Zeilentitel_4>","GemeindeTyp 1","Type de communes 1","Tipo di Comune 1","Type of municipality 1"]
[null,"<Zeilentitel_5>","GemeindeTyp 2","Type de communes 2","Tipo di Comune 2","Type of municipality 2"]
[null,"<Zeilentitel_6>","GemeindeTyp 3","Type de communes 3","Tipo di Comune 3","Type of municipality 3"]
[null,"<Zeilentitel_7>","GemeindeTyp 4","Type de communes 4","Tipo di Comune 4","Type of municipality 4"]
[null,"<Zeilentitel_8>","GemeindeTyp 5","Type de communes 5","Tipo di Comune 5","Type of municipality 5"]
[]
[null,"<Legende_1>","Legende:","Légende:","Legenda:","Legend:"]
[null,"<Legende_2>","Total - Wohneigentum (EFH und EGW)","Total - Logements en propriété (MI et PPE)","Totale - Proprietà residenziale (CU e APP)","Total - Residential property (SFH and CONDO)"]
[null,"<Legende_3>","EFH - Einfamilienhäuser","MI - Maisons individuelles","CU - Case unifamiliari","SFH - Single-family houses"]
[null,"<Legende_4>","EGW - Eigentumswohnungen ","PPE - Appartements en propriété","APP - Appartementi di proprietà","CONDO - Condominiums"]
[null,"<Legende_5>","GemeindeTyp 1 - Städtische Gemeinde einer grossen Agglomeration","Type de communes 1 - Commune urbaine d'une grande agglomération ","Tipo di Comune 1 - Comune urbano di un grande agglomerato","Type of municipality 1 - Urban municipality of a large agglomeration"]
[null,"<Legende_6>","GemeindeTyp 2 - Städtische Gemeinde einer mittelgrossen Agglomeration","Type de communes 2 - Commune urbaine d'une agglomération moyenne","Tipo di Comune 2 - Comune urbano di un agglomerato medio","Type of municipality 2 - Urban  municipality of a medium-sized agglomeration"]
[null,"<Legende_7>","GemeindeTyp 3 - Städtische Gemeinde einer kleinen oder ausserhalb einer Agglomeration","Type de communes 3 - Commune urbaine d'une petite ou hors agglomération","Tipo di Comune 3 - Comune urbano di un piccolo/fuori agglomerato","Type of municipality 3 - Urban municipality of a small or outside agglomeration"]
[null,"<Legende_8>","GemeindeTyp 4 - Intermediäre Gemeinde ","Type de communes 4 - Commune intermédiaire ","Tipo di Comune 4 - Comune intermedio ","Type of municipality 4 - Intermediate municipality"]
[null,"<Legende_9>","GemeindeTyp 5 - Ländliche Gemeinde","Type de communes 5 - Commune rurale","Tipo di Comune 5 - Comune rurale","Type of municipality 5 - Rural municipality"]
[null,"<Quelle>","Quelle: BFS - Schweizerischer Wohnimmobilienpreisindex, IMPI","Sources: OFS - Indice suisse des prix de l'immobilier résidentiel, IMPI","Fonti: UST - Indice svizzero dei prezzi degli immobili residenziali, IMPI","Sources: FSO - Swiss Residential Property Price Index, IMPI"]
[null,"<CopyRight>","© BFS 2021","© OFS 2021","© UST 2021","© FSO 2021 "]
[null,"<Auskunft>","Auskunft: Bundesamt für Statistik (BFS), IMPI@bfs.admin.ch, Tel. +41 58 463 60 69","Renseignements: Office fédéral de la statistique (OFS), IMPI@bfs.admin.ch, Tel. +41 58 463 60 69","Informazioni: Ufficio federale di statistica (UST), IMPI@bfs.admin.ch, tel. +41 58 463 60 69","Information: Federal Statistical Office (FSO), IMPI@bfs.admin.ch, Tel. +41 58 463 60 69 "]